bitfinex-derivatives/quotes_ETHF0:USTF0_20240920
["timestamp","ask_amount","ask_price","bid_price","bid_amount"]
[1726852603091,0.39237,2548.2,2548.1,0.4737]
[1726852603791,0.39237,2548.2,2548.1,0.86609]
[1726852605891,1.40895557,2548.2,2548.1,0.86609]
[1726852608897,1.40894557,2548.3,2548.2,0.39237]
[1726852609289,0.39236,2548.3,2548.2,0.39237]
[1726852609493,1.40832425,2548.3,2548.2,0.39237]
[1726852609689,1.40830621,2548.3,2548.2,0.39237]
[1726852609901,1.40827423,2548.3,2548.2,0.39237]
[1726852610104,1.40833088,2548.3,2548.2,0.39237]
[1726852610300,0.39236,2548.3,2548.2,0.39237]
[1726852610503,1.4083788,2548.3,2548.2,0.39237]
[1726852611407,0.39237,2548.2,2548.1,0.86607]
[1726852611607,1.40836857,2548.2,2548.1,0.86607]
[1726852611805,0.39237,2548.2,2548.1,0.86607]
[1726852612310,1.40836857,2548.2,2548.1,0.86607]
[1726852612603,1.40836857,2548.2,2547.8,4.18888]
[1726852612604,0.39242,2547.9,2547.8,0.39242]
[1726852612909,0.98102,2548.0,2547.7,0.39244]
[1726852612910,0.39245,2547.8,2547.7,0.39244]
[1726852613099,1.01570278,2547.8,2547.7,0.39244]
[1726852613294,0.39243,2547.8,2547.7,0.39244]
[1726852613907,1.01570278,2547.9,2547.8,0.39243]
[1726852613908,1.40812278,2547.9,2547.8,0.39243]
[1726852614100,0.39242,2547.9,2547.8,0.39243]
[1726852614296,1.40812278,2547.9,2547.8,0.39243]
[1726852617401,0.39242,2547.9,2547.8,0.39243]
[1726852618199,1.40812278,2547.9,2547.8,0.39243]
[1726852618502,0.39242,2547.9,2547.8,0.39243]
[1726852618809,1.40812278,2547.9,2547.8,0.39243]
[1726852619707,1.01570278,2547.9,2547.8,0.39243]
[1726852619905,1.36891,2548.0,2547.9,0.39242]
[1726852619906,1.40811278,2548.0,2547.9,0.39242]
[1726852620098,1.40811278,2548.0,2547.9,3.45242]
[1726852620099,1.01570278,2548.0,2547.9,3.45242]
[1726852620297,1.40809278,2548.1,2548.0,0.3924]
[1726852620507,1.40809278,2548.1,2548.0,4.58121]
[1726852620508,1.01570278,2548.1,2548.0,4.58121]
[1726852620709,0.39237,2548.2,2548.0,4.58121]
[1726852620710,1.01570278,2548.2,2548.1,0.39239]
[1726852620906,1.01570278,2548.2,2548.1,0.85659]
[1726852621317,1.01570278,2548.2,2548.1,1.83756]
[1726852621608,1.01570278,2548.4,2548.3,0.39235]
[1726852621814,1.01570278,2548.6,2548.5,0.39232]
[1726852622108,1.01570278,2548.7,2548.6,0.39231]
[1726852622807,0.39229,2548.7,2548.6,0.39231]
[1726852623210,1.92074197,2548.9,2548.8,0.39228]
[1726852623406,1.52847197,2549.0,2548.8,3.06]
[1726852623605,1.01683963,2548.9,2548.8,3.45228]
[1726852623916,4.73627197,2549.2,2548.8,3.45228]
[1726852623917,1.01683963,2549.0,2548.9,0.39226]
[1726852624209,1.01683963,2549.2,2549.1,0.39223]
[1726852624400,1.01683963,2549.2,2549.1,3.45223]
[1726852624607,1.92064197,2549.5,2549.3,0.3922]
[1726852624906,3.2078,2549.7,2549.1,3.06]
[1726852624907,1.92066197,2549.4,2549.2,0.39221]
[1726852625102,1.92066197,2549.4,2548.9,4.312]
[1726852625103,1.52847197,2549.4,2548.9,4.312]
[1726852625303,1.01703551,2549.0,2548.9,4.312]
[1726852625510,1.01703551,2549.0,2548.7,3.2078]
[1726852625511,0.98062,2549.0,2548.7,3.2078]
[1726852625807,0.98062,2549.0,2548.3,3.5654]
[1726852625808,4.73627197,2548.8,2548.3,3.5654]
[1726852626007,1.01684502,2548.5,2548.2,3.2078]
[1726852626199,1.01684502,2548.4,2548.2,3.2078]
[1726852626403,1.40919502,2548.3,2548.2,3.2078]
[1726852626614,1.01684502,2548.3,2548.2,3.60017]
[1726852627704,1.0167566,2548.3,2548.2,0.39237]
[1726852628018,1.01676958,2548.3,2548.2,0.39237]
[1726852628314,1.01685582,2548.3,2548.2,0.39237]
[1726852628809,1.52526753,2548.5,2548.4,0.39234]
[1726852629014,0.89471,2548.6,2548.4,0.39234]
[1726852629015,2.41997753,2548.6,2548.4,0.39234]
[1726852629315,1.52526753,2548.5,2548.4,0.39234]
[1726852629709,0.462,2548.7,2548.5,0.39232]
[1726852629710,1.52526753,2548.7,2548.5,0.39232]
[1726852629920,1.52526753,2548.6,2548.5,0.39232]
[1726852630419,1.52526753,2548.7,2548.5,0.39232]
[1726852630816,1.52526753,2548.6,2548.5,0.39232]
[1726852631111,5.01821,2549.1,2548.6,0.39231]
[1726852631112,1.52526753,2548.7,2548.6,0.39231]
[1726852631316,1.52526753,2548.7,2548.6,3.06]
[1726852631317,1.01771946,2548.7,2548.6,3.06]
[1726852631514,1.01771946,2548.7,2548.6,7.85771]
[1726852632211,1.01771946,2548.7,2548.6,8.33981]
[1726852633011,1.01771946,2548.7,2548.6,4.41581]
[1726852633407,1.01771946,2548.7,2548.6,5.39659]
[1726852633613,1.01771946,2548.8,2548.7,0.39229]
[1726852633910,1.52526753,2549.0,2548.9,0.39226]
[1726852635716,1.52526753,2549.0,2548.9,3.45226]
[1726852635918,2.90171618,2549.4,2549.2,0.39222]
[1726852636114,0.3922,2549.3,2549.2,0.39222]
[1726852636313,0.3922,2549.3,2549.1,0.39222]
[1726852636522,2.43381618,2549.3,2549.1,0.39222]
[1726852636719,0.39222,2549.2,2549.1,0.39222]
[1726852637309,9.02481618,2549.2,2548.7,4.297]
[1726852637523,1.91943694,2548.8,2548.7,0.39229]
[1726852637822,0.98064,2549.0,2548.6,3.2078]
[1726852637823,6.08224618,2549.0,2548.6,3.2078]
[1726852638118,6.08224618,2549.0,2548.7,0.39229]
[1726852638119,0.39229,2548.8,2548.7,0.39229]
[1726852640612,2.43390618,2548.8,2548.7,0.39229]
[1726852640819,0.39229,2548.8,2548.7,0.39229]
[1726852642016,3.01141618,2548.9,2548.7,0.39229]
[1726852642222,2.43386618,2549.0,2548.9,0.39226]
[1726852643814,0.39225,2549.0,2548.9,0.39226]
[1726852645524,0.39226,2549.0,2548.9,0.39226]
[1726852645725,0.39226,2549.0,2548.9,0.87306]
[1726852647023,0.39226,2549.0,2548.9,0.4808]
[1726852647226,0.39226,2549.0,2548.8,0.89947]
[1726852647227,0.39226,2548.9,2548.8,0.89947]
[1726852647823,0.39229,2548.8,2548.7,0.39229]
[1726852648528,0.39229,2548.7,2548.6,0.3923]
[1726852648715,0.39231,2548.6,2548.5,0.87731]
[1726852649028,0.39231,2548.6,2548.5,0.39231]
[1726852649029,1.92201694,2548.6,2548.5,0.39231]
[1726852649221,0.39232,2548.5,2548.4,0.86562]
[1726852650323,2.51052694,2548.5,2547.9,6.2678]
[1726852650527,6.56041618,2548.7,2547.6,1.54117131]
[1726852650528,1.02030659,2548.0,2547.6,1.0269605]
[1726852650721,1.02008008,2547.8,2547.7,0.39245]
[1726852650916,2.43402618,2548.0,2547.9,0.39242]
[1726852651624,2.43402618,2548.0,2547.8,0.39242]
[1726852651625,0.39242,2547.9,2547.8,0.39242]
[1726852652331,2.43402618,2548.0,2547.6,3.06]
[1726852652545,1.52977995,2547.7,2547.6,3.45246]
[1726852653222,1.52977995,2547.8,2547.7,0.39245]
[1726852653427,1.5300781,2547.8,2547.7,7.14805]
[1726852653627,3.40629618,2548.2,2547.8,0.39243]
[1726852653628,1.5300781,2547.9,2547.8,0.39243]
[1726852653829,1.53016162,2547.9,2547.7,3.5478]
[1726852654125,1.53029606,2547.8,2547.7,3.94025]
[1726852656230,1.53029606,2547.9,2547.8,0.39243]
[1726852656533,0.39239,2548.1,2548.0,0.3924]
[1726852656534,2.43400618,2548.1,2548.0,0.3924]
[1726852656935,0.39239,2548.1,2548.0,0.3924]
[1726852657222,2.43400618,2548.1,2548.0,0.3924]
[1726852657426,2.90508618,2548.2,2548.1,0.39239]
[1726852657625,2.04161618,2548.2,2548.1,3.45239]
[1726852657830,2.89585618,2548.4,2548.3,0.39235]
[1726852658938,0.85424,2548.4,2548.3,0.39235]
[1726852659634,4.77824,2548.4,2548.3,0.39235]
[1726852661936,0.85424,2548.4,2548.3,0.39235]
[1726852662342,4.77824,2548.4,2548.3,0.39235]
[1726852663337,3.99779618,2548.6,2548.4,0.39233]
[1726852663338,0.39234,2548.5,2548.4,0.39233]
[1726852663641,1.53037807,2548.6,2548.5,0.39232]
[1726852663937,1.53048655,2548.7,2548.6,0.39231]
[1726852664143,0.39229,2548.8,2548.7,0.39229]
[1726852664533,2.43388618,2548.9,2548.8,0.39227]
[1726852664731,0.39227,2548.9,2548.8,0.39227]
[1726852664936,2.43388618,2548.9,2548.8,0.39227]
[1726852665141,0.39227,2548.9,2548.8,0.39227]
[1726852665341,6.23004618,2549.0,2548.9,0.39226]
[1726852665342,5.64167618,2549.0,2548.9,0.39226]
[1726852665547,1.4937,2549.1,2549.0,0.39225]
[1726852665548,2.04161618,2549.1,2549.0,0.39225]
[1726852665731,0.39224,2549.1,2549.0,0.39225]
[1726852665932,2.43384618,2549.2,2549.1,0.39223]
[1726852666137,6.35704618,2549.2,2549.1,0.39223]
[1726852666333,5.96481618,2549.2,2549.1,0.39223]
[1726852666548,5.96481618,2549.2,2549.0,3.06]
[1726852666549,0.3922,2549.3,2549.2,0.39222]
[1726852666741,3.9224,2549.3,2549.2,0.39222]
[1726852667442,3.51611618,2549.5,2549.3,0.3922]
[1726852667641,0.39219,2549.4,2549.2,0.3922]
[1726852668648,3.02681618,2549.5,2549.1,0.4809]
[1726852668838,2.04161618,2549.5,2549.4,0.39219]
[1726852669442,5.64157618,2549.6,2549.4,0.39219]
[1726852669637,5.24941618,2549.6,2549.5,0.39217]
[1726852669842,3.2078,2549.6,2549.5,0.39217]
[1726852670038,2.04161618,2549.7,2549.6,0.39215]
[1726852670237,2.43373618,2549.9,2549.6,3.06]
[1726852670443,2.43373618,2549.9,2549.6,3.45215]
[1726852671150,2.43373618,2549.9,2549.7,0.39213]
[1726852671352,2.43373618,2549.9,2549.6,3.45214]
[1726852671540,2.43373618,2549.9,2549.7,0.4828]
[1726852671848,0.39212,2549.8,2549.7,0.4828]
[1726852672150,0.39212,2549.9,2549.7,0.87494]
[1726852672446,1.52687829,2550.0,2549.8,6.2678]
[1726852672636,1.91899829,2549.9,2549.7,4.0154]
[1726852672840,0.39212,2549.8,2549.7,0.9554]
[1726852673045,3.02184618,2550.1,2549.3,3.06]
[1726852673046,3.2078,2550.0,2549.3,3.06]
[1726852673346,1.91856336,2549.6,2549.3,7.344]
[1726852673538,1.52636336,2549.5,2549.3,7.344]
[1726852673852,1.52636336,2549.6,2549.2,0.9574]
[1726852674042,4.59260333,2549.6,2549.2,5.63265]
[1726852674238,3.31939549,2549.5,2549.2,5.63265]
[1726852674443,2.03441132,2549.3,2549.2,5.63265]
[1726852674642,2.54061528,2549.6,2549.2,0.9574]
[1726852674954,0.39224,2549.3,2549.2,0.9574]
[1726852675148,2.05188884,2549.3,2549.2,0.4929]
[1726852675952,0.39226,2549.2,2549.1,4.283]
[1726852676147,1.65964884,2549.2,2548.9,0.4645]
[1726852676345,3.52123528,2549.3,2548.9,0.4645]
[1726852676550,2.03385172,2549.0,2548.9,0.4645]
[1726852676746,2.42614172,2549.0,2548.9,0.4645]
[1726852676954,0.98066,2549.2,2548.9,0.4645]
[1726852676955,2.54061528,2549.2,2548.9,0.4645]
[1726852677154,0.39229,2549.0,2548.9,0.4645]
[1726852677350,0.39228,2549.1,2548.9,0.8568]
[1726852677549,3.52123528,2549.3,2548.9,0.4645]
[1726852677847,0.39229,2549.0,2548.9,0.4645]
[1726852678048,2.05139751,2549.0,2548.9,0.4645]
[1726852678847,0.3923,2548.9,2548.8,0.46]
[1726852679154,0.3923,2548.9,2548.7,4.283]
[1726852679155,0.39232,2548.8,2548.7,4.283]
[1726852679345,6.72911528,2549.1,2548.7,4.283]
[1726852679548,0.39232,2548.8,2548.7,4.67533]
[1726852679749,0.39232,2548.8,2548.7,4.283]
[1726852679952,0.39232,2548.8,2548.7,4.67533]
[1726852680149,3.2078,2548.8,2548.5,0.9917]
[1726852680346,2.42637471,2548.7,2548.5,0.4971]
[1726852680651,0.39236,2548.5,2548.4,0.4602]
[1726852680850,4.18872,2548.5,2548.2,0.39241]
[1726852681053,1.9175729,2548.4,2548.2,0.39241]
[1726852681245,1.5251929,2548.4,2548.3,0.39239]
[1726852681446,0.39238,2548.4,2548.3,0.39239]
[1726852681655,0.39239,2548.3,2548.2,0.3924]
[1726852681955,0.39239,2548.4,2548.3,0.39239]
[1726852682148,0.3924,2548.3,2548.2,0.3924]
[1726852682349,4.7329929,2548.5,2548.2,0.3924]
[1726852682350,1.9175829,2548.4,2548.2,0.3924]
[1726852682552,1.01670353,2548.3,2548.2,0.3924]
[1726852682853,0.39239,2548.3,2548.1,1.35251]
[1726852683050,4.2247103,2548.2,2548.1,1.35251]
[1726852683951,1.0169103,2548.2,2548.1,1.35251]
[1726852684156,0.39239,2548.4,2548.2,0.39241]
[1726852684455,1.5251929,2548.5,2548.2,0.39241]
[1726852684850,0.39239,2548.3,2548.2,0.39241]
[1726852685143,0.39238,2548.4,2548.3,0.39239]
[1726852685747,1.5251929,2548.5,2548.2,0.3924]
[1726852685963,1.9175829,2548.4,2548.2,0.3924]
[1726852686258,1.9175829,2548.4,2548.3,0.39239]
[1726852687151,0.39239,2548.4,2548.3,0.39239]
[1726852687351,1.9175829,2548.4,2548.3,0.39239]
[1726852688160,0.39239,2548.4,2548.3,0.39239]
[1726852688847,0.3924,2548.3,2548.2,0.3924]
[1726852689044,3.6002,2548.3,2548.2,0.3924]
[1726852689954,3.2078,2548.3,2547.6,3.06]
[1726852690158,5.20592521,2548.0,2547.5,0.9208]
[1726852690348,5.20592521,2548.0,2547.7,0.39248]
[1726852690349,1.01701521,2547.9,2547.7,0.39248]
[1726852690550,0.3925,2547.7,2547.6,0.3925]
[1726852690755,0.3925,2547.7,2547.5,0.9208]
[1726852690756,0.3925,2547.6,2547.5,0.9208]
[1726852690960,1.99827521,2547.6,2547.1,3.06]
[1726852691256,1.40953521,2547.5,2547.4,0.39253]
[1726852691967,0.39252,2547.5,2547.4,0.39253]
[1726852692256,1.40953521,2547.5,2547.4,0.39253]
[1726852694155,0.39252,2547.5,2547.4,0.39253]
[1726852695856,1.51521521,2547.6,2547.1,4.04144]
[1726852696054,4.22481521,2547.7,2547.6,0.3925]
[1726852696362,0.3925,2547.6,2547.5,3.4525]
[1726852696753,0.3925,2547.6,2547.5,0.3925]
[1726852696963,4.22481521,2547.7,2547.3,3.06]
[1726852697162,0.39253,2547.5,2547.4,0.39252]
[1726852699260,0.39253,2547.5,2547.1,4.18924]
[1726852699261,0.98127,2547.6,2547.1,3.06]
[1726852699467,0.39255,2547.3,2547.2,0.39255]
[1726852700557,3.60034,2547.4,2547.3,0.39255]
[1726852700752,0.39254,2547.4,2547.3,0.39255]
[1726852704859,3.60034,2547.4,2547.3,0.39255]
[1726852705459,0.4686,2547.5,2547.3,0.39255]
[1726852705767,0.39253,2547.4,2547.3,0.39255]
[1726852706363,0.39253,2547.4,2547.0,1.92579]
[1726852706364,0.39256,2547.3,2547.2,0.39255]
[1726852706758,12.9856,2547.3,2546.6,0.5011]
[1726852706961,0.39264,2546.7,2546.6,1.35705]
[1726852707356,3.60044,2546.8,2546.2,7.24959]
[1726852707556,3.60044,2546.8,2546.7,0.39264]
[1726852707768,0.39265,2546.7,2546.6,0.39265]
[1726852711270,0.39261,2546.9,2546.8,0.39261]
[1726852711971,0.8937,2547.0,2546.9,0.39261]
[1726852712162,0.39262,2546.9,2546.8,0.39262]
[1726852712966,4.1015,2547.0,2546.9,0.39261]
[1726852713465,4.1015,2547.0,2546.8,0.39262]
[1726852713466,0.39262,2546.9,2546.8,0.39262]
[1726852714574,4.1015,2547.0,2546.9,0.39261]
[1726852715177,8.0279,2547.0,2546.9,0.39261]
[1726852716172,3.7089,2547.0,2546.9,0.39261]
[1726852716372,3.2078,2547.0,2546.9,0.39261]
[1726852716579,3.2078,2547.0,2546.9,1.37414]
[1726852716874,3.2078,2547.7,2547.1,0.98145]
[1726852717070,3.2078,2547.7,2547.6,0.3925]
[1726852718868,3.2078,2547.7,2547.5,1.36851]
[1726852718869,3.60029,2547.7,2547.5,1.36851]
[1726852719167,3.60029,2547.7,2547.2,7.8131]
[1726852719168,0.39253,2547.5,2547.3,0.39254]
[1726852719365,3.2078,2547.7,2547.2,4.275]
[1726852719561,0.39252,2547.5,2547.3,0.39253]
[1726852720673,1.40953521,2547.5,2547.3,0.39254]
[1726852720877,1.01701521,2547.5,2547.2,4.275]
[1726852721068,1.40952521,2547.6,2547.4,0.39252]
[1726852721380,1.407308,2547.6,2547.5,0.39252]
[1726852721569,1.407308,2547.6,2547.4,0.39252]
[1726852721770,1.407308,2547.6,2547.5,0.39252]
[1726852722070,0.39252,2547.5,2547.4,0.39252]
[1726852722370,0.39254,2547.4,2547.3,0.39255]
[1726852722568,1.906028,2547.5,2547.3,0.39253]
[1726852722772,1.014798,2547.4,2547.3,0.39253]
[1726852723569,1.407318,2547.5,2547.4,0.39253]
[1726852723969,0.39251,2547.6,2547.5,0.39251]
[1726852724166,4.7329929,2547.7,2547.6,0.3925]
[1726852724167,3.2078,2547.7,2547.6,0.3925]
[1726852724366,4.22443985,2547.7,2547.6,2.82192]
[1726852724670,1.01663985,2548.0,2547.9,0.39246]
[1726852724870,1.5251929,2548.2,2548.1,0.39242]
[1726852725072,1.5251929,2548.2,2547.6,1.93096]
[1726852725073,0.39243,2548.1,2547.6,4.99096]
[1726852725282,0.39243,2548.1,2547.8,0.39247]
[1726852725283,1.01715258,2547.9,2547.8,0.39247]
[1726852725976,1.01718352,2547.9,2547.6,4.99096]
[1726852726168,2.03369767,2547.9,2547.6,4.99096]
[1726852726477,1.52572572,2547.7,2547.6,8.91576]
[1726852726774,2.03430096,2548.1,2548.0,0.39244]
[1726852726986,5.63452096,2548.2,2547.8,4.262]
[1726852727173,3.2078,2548.2,2548.1,0.39242]
[1726852727477,4.85488056,2548.2,2548.1,0.39242]
[1726852727676,1.64708056,2548.2,2548.1,0.39242]
[1726852729068,2.03949056,2548.2,2548.1,0.39242]
[1726852729277,2.03949056,2548.2,2547.6,0.9497]
[1726852729278,1.64708056,2548.2,2547.6,0.9497]
[1726852729474,2.03636181,2547.9,2547.6,0.9497]
[1726852729676,2.03636181,2547.9,2547.8,0.39247]
[1726852729975,0.39248,2547.8,2547.6,0.85939]
[1726852730175,2.0363021,2547.7,2547.6,0.85939]
[1726852730476,0.4697,2547.8,2547.6,0.39249]
[1726852730673,3.2078,2547.7,2547.4,4.262]
[1726852730877,3.2078,2547.7,2547.4,0.39253]
[1726852730878,2.04137317,2547.6,2547.4,0.39253]
[1726852731082,0.39251,2547.6,2547.4,0.39253]
[1726852731575,0.39252,2547.5,2547.4,0.39252]
[1726852731765,2.04175058,2547.6,2547.5,0.39252]
[1726852731970,2.04176649,2547.6,2547.5,0.39252]
[1726852732279,2.04176649,2547.6,2547.4,0.39252]
[1726852732476,2.04176649,2547.6,2547.3,0.4845]
[1726852732477,0.39251,2547.6,2547.5,0.39252]
[1726852732775,4.19035075,2547.6,2547.3,0.39254]
[1726852732970,1.64959932,2547.5,2547.4,0.39253]
[1726852733168,0.39251,2547.6,2547.4,0.39253]
[1726852733368,2.42960048,2547.6,2547.4,0.39253]
[1726852733570,2.03709048,2547.6,2547.5,0.39252]
[1726852733878,0.8871,2547.7,2547.6,0.3925]
[1726852733879,0.88709,2547.7,2547.6,0.3925]
[1726852734068,0.88709,2547.7,2547.5,0.39251]
[1726852734069,0.3925,2547.6,2547.5,0.39251]
[1726852734670,5.73949048,2547.7,2547.6,0.3925]
[1726852734671,6.13198048,2547.7,2547.6,0.3925]
[1726852734873,0.3925,2547.6,2547.5,0.39251]
[1726852735577,0.39252,2547.5,2547.4,0.39252]
[1726852736076,2.03709048,2547.5,2547.4,0.39252]
[1726852736274,2.03709048,2547.5,2547.2,4.262]
[1726852736275,2.42960048,2547.6,2547.5,0.39252]
[1726852736581,0.39251,2547.6,2547.5,0.39252]
[1726852737273,2.43124977,2547.6,2547.5,0.39252]
[1726852738280,2.43157383,2547.6,2547.5,0.39252]
[1726852738779,2.43155383,2547.7,2547.6,0.3925]
[1726852739175,2.03906383,2547.7,2547.6,0.3925]
[1726852739577,2.43155383,2547.7,2547.6,0.3925]
[1726852740170,2.03906383,2547.7,2547.6,0.3925]
[1726852740474,0.86218,2547.8,2547.7,0.39249]
[1726852740673,2.90134882,2547.8,2547.7,0.39249]
[1726852740873,2.90133882,2547.8,2547.7,0.39249]
[1726852741071,2.03916882,2547.9,2547.8,0.39247]
[1726852741271,3.2078,2548.0,2547.9,0.39246]
[1726852741481,5.25090214,2548.0,2547.9,0.39246]
[1726852742080,3.60026,2548.0,2547.9,0.39246]
[1726852742279,3.2078,2548.0,2547.9,0.39246]
[1726852742486,3.2078,2548.0,2547.9,9.33956]
[1726852742779,3.2078,2548.0,2547.9,13.60156]
[1726852743384,2.03903817,2548.2,2548.1,1.37349]
[1726852743584,2.03903817,2548.2,2548.1,4.43349]
[1726852743786,2.03903817,2548.3,2548.2,1.37344]
[1726852744086,2.03903817,2548.3,2548.2,4.43344]
[1726852744287,2.03903817,2548.3,2548.2,8.35744]
[1726852744483,2.54879771,2548.4,2548.3,0.39239]
[1726852744884,4.19998996,2548.4,2548.3,0.39239]
[1726852745087,2.54879771,2548.4,2548.3,0.39239]
[1726852745281,4.19998996,2548.4,2548.3,0.39239]
[1726852745488,1.65119225,2548.4,2548.3,0.39239]
[1726852745690,4.19998996,2548.4,2548.3,0.39239]
[1726852747597,4.19873404,2548.4,2548.3,0.39239]
[1726852748090,1.64993633,2548.4,2548.3,0.39239]
[1726852748290,4.65553404,2548.4,2548.3,0.39239]
[1726852748482,2.10673633,2548.4,2548.3,0.39239]
[1726852748688,2.88650137,2548.4,2548.3,0.39239]
[1726852748985,2.49412137,2548.4,2548.3,0.39239]
[1726852749187,2.49992137,2548.5,2548.4,0.39238]
[1726852749390,3.2078,2548.6,2548.5,0.39236]
[1726852749595,2.98562137,2548.8,2548.5,3.06]
[1726852749784,2.98562137,2548.8,2548.7,0.39233]
[1726852749785,2.98579112,2548.8,2548.7,0.39233]
[1726852749991,0.9483,2548.8,2548.7,0.39233]
[1726852750289,0.9483,2548.8,2548.6,0.39234]
[1726852750488,0.9483,2548.8,2548.3,4.04099]
[1726852750489,0.39235,2548.6,2548.5,0.39236]
[1726852750688,0.39235,2548.6,2548.1,7.24884]
[1726852750890,0.39235,2548.6,2548.2,0.39241]
[1726852750891,1.01875616,2548.3,2548.2,0.39241]
[1726852751391,1.01875616,2548.4,2548.3,1.37338]
[1726852751584,1.01875616,2548.4,2548.3,4.43338]
[1726852751778,3.2078,2548.7,2548.3,7.96499]
[1726852751984,3.2078,2548.7,2548.3,4.04099]
[1726852752179,3.2078,2548.7,2548.4,0.39238]
[1726852752393,3.2078,2548.7,2548.6,0.39235]
[1726852752889,3.2078,2548.7,2548.6,3.45235]
[1726852754288,3.2078,2548.7,2548.6,0.39235]
[1726852754498,3.2078,2548.7,2548.5,0.39235]
[1726852754693,3.60014,2548.7,2548.6,0.39235]
[1726852755389,3.2078,2548.7,2548.6,0.39235]
[1726852755584,2.03718118,2548.8,2548.7,0.39233]
[1726852756184,1.365,2548.9,2548.8,0.39232]
[1726852756588,1.365,2548.9,2548.7,0.39232]
[1726852756589,0.39232,2548.8,2548.7,0.39232]
[1726852756788,2.4299491,2548.8,2548.7,0.39232]
[1726852757093,0.39234,2548.7,2548.4,3.06]
[1726852757396,2.0376291,2548.8,2548.7,0.39233]
[1726852758190,2.0376291,2548.9,2548.8,0.39232]
[1726852758497,0.9981,2549.0,2548.8,0.39232]
[1726852758498,2.0376291,2549.0,2548.9,0.3923]
[1726852758688,2.0376291,2549.1,2548.9,0.3923]
[1726852758889,2.4298991,2549.1,2549.0,0.39229]
[1726852759499,0.39232,2548.8,2548.7,0.39233]
[1726852760194,0.987,2548.8,2548.7,0.39233]
[1726852760493,0.39231,2548.9,2548.8,0.39232]
[1726852760995,0.39232,2548.8,2548.7,0.87012]
[1726852761299,2.036852,2548.9,2548.8,0.39232]
[1726852761494,2.429162,2548.9,2548.8,0.39232]
[1726852762502,3.60009,2549.0,2548.9,0.3923]
[1726852762993,4.18853,2549.0,2548.6,3.06]
[1726852763191,2.42966095,2548.9,2548.8,0.3923]
[1726852763393,2.03735095,2548.9,2548.8,0.3923]
[1726852763795,2.03735095,2548.9,2548.8,0.39232]
[1726852763796,1.64887008,2548.9,2548.8,0.39232]
[1726852766301,6.63032791,2549.0,2548.9,0.3923]
[1726852766503,10.91628773,2549.0,2548.9,0.3923]
[1726852767503,0.3923,2548.9,2548.8,0.3923]
[1726852767801,2.04077962,2548.9,2548.5,5.22691]
[1726852767999,1.64846962,2548.8,2548.7,0.39233]
[1726852768395,0.39234,2548.7,2548.6,0.39234]
[1726852768701,6.18390962,2548.7,2548.6,0.39234]
[1726852768901,5.79156962,2548.7,2548.6,0.39234]
[1726852770905,4.1431,2548.7,2548.6,0.39234]
[1726852772008,6.17952305,2548.7,2548.6,0.39234]
[1726852772396,0.9353,2548.7,2548.6,0.39234]
[1726852772910,6.17952305,2548.7,2548.6,0.39234]
[1726852773603,2.97172305,2548.7,2548.6,0.39234]
[1726852774407,6.17952305,2548.7,2548.6,0.39234]
[1726852774910,6.57185305,2548.7,2548.6,0.39234]
[1726852775512,6.17952305,2548.7,2548.6,0.39234]
[1726852776312,6.17952305,2548.7,2547.6,0.98125]
[1726852776313,0.98088,2548.6,2547.6,0.98125]
[1726852776500,0.98088,2548.6,2547.8,0.39247]
[1726852776501,1.01892772,2548.0,2547.8,0.39247]
[1726852776805,1.01892772,2548.0,2547.5,8.2858]
[1726852776806,3.01305545,2547.9,2547.5,4.7363]
[1726852777022,1.01862191,2547.6,2547.5,0.88282]
[1726852777199,1.01862191,2547.6,2547.5,3.94282]
[1726852777713,3.49115545,2547.9,2547.6,0.39249]
[1726852777908,3.49115545,2547.9,2547.7,0.39248]
[1726852778115,2.03785545,2547.8,2547.6,0.39249]
[1726852778306,3.49115545,2547.9,2547.5,3.5503]
[1726852778609,2.03785545,2547.8,2547.7,0.39249]
[1726852778911,3.52072882,2547.9,2547.8,0.39247]
[1726852779107,5.17040455,2547.9,2547.8,0.39247]
[1726852779512,2.62487573,2547.9,2547.8,0.39247]
[1726852779707,4.19731658,2547.9,2547.8,0.39247]
[1726852779913,1.64967573,2547.9,2547.8,4.81297]
[1726852780221,2.54764085,2548.1,2547.8,18.85548]
[1726852780409,2.03836473,2548.0,2547.9,3.45246]
[1726852780607,2.54764085,2548.1,2547.9,3.06]
[1726852781115,2.54764085,2548.1,2548.0,0.39244]
[1726852782115,2.54764085,2548.1,2547.8,4.7417]
[1726852782312,4.19966234,2548.0,2547.9,0.39246]
[1726852782612,1.65063852,2548.0,2547.9,0.39246]
[1726852784308,4.20116949,2548.0,2547.9,0.39246]
[1726852784509,1.65063852,2548.0,2547.9,4.90621]
[1726852784910,2.55134936,2548.1,2548.0,0.39244]
[1726852785212,4.20623763,2548.1,2548.0,0.86724]
[1726852785415,1.65488827,2548.1,2548.0,0.4748]
[1726852785609,1.65553732,2548.1,2548.0,0.4748]
[1726852785812,1.65553732,2548.1,2548.0,0.86724]
[1726852786012,2.04269213,2548.1,2548.0,0.86724]
[1726852786215,2.04269213,2548.2,2548.1,0.39242]
[1726852786615,8.39444505,2548.3,2548.1,0.39241]
[1726852786616,6.73876516,2548.3,2548.1,0.39241]
[1726852787613,10.66276516,2548.3,2548.1,0.39241]
[1726852787816,1.65556316,2548.2,2548.1,0.39241]
[1726852788209,5.58036316,2548.2,2548.1,0.39241]
[1726852789412,3.9248,2548.2,2548.1,0.39241]
[1726852789814,6.73876516,2548.3,2548.2,0.39241]
[1726852790112,8.39376242,2548.3,2548.2,0.39241]
[1726852790317,12.31776242,2548.3,2548.2,0.39241]
[1726852791518,12.31776242,2548.3,2548.2,3.45241]
[1726852791519,5.84039726,2548.3,2548.2,3.45241]
[1726852791722,0.9776,2548.3,2548.2,3.45241]
[1726852792032,2.04214806,2548.3,2548.2,3.45241]
[1726852792215,2.04214806,2548.3,2548.2,4.42701]
[1726852792417,2.04199833,2548.3,2548.2,4.42701]